[Event "Early-Titled-Tuesday-Blitz-March-19-2024"]
[Site "Chess.com"]
[Date "2024.03.19"]
[Round "7"]
[White "MarijaKuznecova"]
[Black "MKlose11"]
[Result "0-1"]
[WhiteElo "2396"]
[BlackElo "2596"]
[TimeControl "180+1"]
[EndTime "9:18:57 PDT"]
[Termination "MKlose11 won on time"]

1. e4 {[%clk 0:03:00.9]} 1... e6 {[%clk 0:02:59.6]} 2. d4 {[%clk 0:03:00.5]}
2... d5 {[%clk 0:03:00.5]} 3. Nc3 {[%clk 0:02:59.5]} 3... Bb4 {[%clk 0:03:00.1]}
4. e5 {[%clk 0:02:59.7]} 4... Ne7 {[%clk 0:02:57]} 5. Qg4 {[%clk 0:02:57.3]}
5... c5 {[%clk 0:02:51.9]} 6. a3 {[%clk 0:02:55.2]} 6... Ba5 {[%clk 0:02:48.2]}
7. dxc5 {[%clk 0:02:38.4]} 7... Bxc3+ {[%clk 0:02:47.7]} 8. bxc3 {[%clk
0:02:38.1]} 8... Qc7 {[%clk 0:02:47.2]} 9. f4 {[%clk 0:02:24.2]} 9... Qxc5
{[%clk 0:02:44.7]} 10. Ne2 {[%clk 0:02:24.7]} 10... Nf5 {[%clk 0:02:42.6]} 11.
a4 {[%clk 0:02:19.4]} 11... Nc6 {[%clk 0:02:40.2]} 12. Ba3 {[%clk 0:02:13.1]}
12... Qe3 {[%clk 0:02:36.5]} 13. Rd1 {[%clk 0:02:01.5]} 13... Bd7 {[%clk
0:02:34.9]} 14. Qf3 {[%clk 0:01:33.4]} 14... Qxf3 {[%clk 0:02:30.8]} 15. gxf3
{[%clk 0:01:34.3]} 15... Na5 {[%clk 0:02:31.1]} 16. Bb4 {[%clk 0:01:23.6]} 16...
Nc4 {[%clk 0:02:29.2]} 17. Ra1 {[%clk 0:01:22.1]} 17... a5 {[%clk 0:02:24.8]}
18. Bc5 {[%clk 0:01:19.2]} 18... Nb2 {[%clk 0:02:05.6]} 19. Nd4 {[%clk
0:00:51.3]} 19... Nxd4 {[%clk 0:01:34.7]} 20. Bxd4 {[%clk 0:00:52.2]} 20... Nxa4
{[%clk 0:01:30.6]} 21. Kd2 {[%clk 0:00:50.9]} 21... b5 {[%clk 0:01:26.6]} 22.
Bd3 {[%clk 0:00:44.9]} 22... Nb2 {[%clk 0:01:22]} 23. Be2 {[%clk 0:00:34.1]}
23... Nc4+ {[%clk 0:01:19.9]} 24. Ke1 {[%clk 0:00:34.3]} 24... Bc6 {[%clk
0:01:14.3]} 25. Kf2 {[%clk 0:00:30.8]} 25... Kd7 {[%clk 0:01:06.4]} 26. Rhb1
{[%clk 0:00:30.4]} 26... Kc7 {[%clk 0:01:05.1]} 27. Bc5 {[%clk 0:00:28.6]} 27...
g6 {[%clk 0:01:02.1]} 28. Ra2 {[%clk 0:00:09.3]} 28... h5 {[%clk 0:01:01.1]} 29.
Rba1 {[%clk 0:00:08.1]} 29... a4 {[%clk 0:00:57.3]} 30. h4 {[%clk 0:00:08.5]}
30... Rhd8 {[%clk 0:00:53]} 31. Be7 {[%clk 0:00:07.3]} 31... Rd7 {[%clk
0:00:52.6]} 32. Bb4 {[%clk 0:00:07.8]} 32... d4 {[%clk 0:00:50.3]} 33. cxd4
{[%clk 0:00:03.1]} 33... Rxd4 {[%clk 0:00:50.5]} 34. Kg3 {[%clk 0:00:03.3]}
34... Kb7 {[%clk 0:00:42.5]} 35. Bd3 {[%clk 0:00:01.6]} 35... Rad8 {[%clk
0:00:41]} 36. Bc5 {[%clk 0:00:01.8]} 36... Rxd3 {[%clk 0:00:40.2]} 37. cxd3
{[%clk 0:00:01.8]} 37... Rxd3 {[%clk 0:00:41.1]} 38. Rf2 {[%clk 0:00:01.9]}
38... Rd5 {[%clk 0:00:38.6]} 39. Bb4 {[%clk 0:00:01.4]} 39... Rd3 {[%clk
0:00:37.6]} 40. Be1 {[%clk 0:00:01.1]} 40... Rb3 {[%clk 0:00:35.9]} 41. Rc1
{[%clk 0:00:01.1]} 41... Bd5 {[%clk 0:00:35.5]} 42. Rfc2 {[%clk 0:00:01.5]}
42... Rxf3+ {[%clk 0:00:34.5]} 43. Kh2 {[%clk 0:00:02.1]} 43... Ka6 {[%clk
0:00:31.6]} 44. Rd1 {[%clk 0:00:02.3]} 44... Ne3 {[%clk 0:00:31.2]} 0-1

[Event "Early-Titled-Tuesday-Blitz-March-19-2024"]
[Site "Chess.com"]
[Date "2024.03.19"]
[Round "7"]
[White "Zampronha1971"]
[Black "WindWhistler11"]
[Result "0-1"]
[WhiteElo "2309"]
[BlackElo "2528"]
[TimeControl "180+1"]
[EndTime "9:18:58 PDT"]
[Termination "WindWhistler11 won by resignation"]

1. e4 {[%clk 0:03:00.9]} 1... e6 {[%clk 0:02:56]} 2. d4 {[%clk 0:03:00.2]} 2...
d5 {[%clk 0:02:56.9]} 3. Nc3 {[%clk 0:03:00.3]} 3... Bb4 {[%clk 0:02:52.7]} 4.
e5 {[%clk 0:03:00.4]} 4... Ne7 {[%clk 0:02:53.2]} 5. a3 {[%clk 0:02:57.7]} 5...
Bxc3+ {[%clk 0:02:51.3]} 6. bxc3 {[%clk 0:02:58.6]} 6... c5 {[%clk 0:02:51.9]}
7. Qg4 {[%clk 0:02:58.5]} 7... Nf5 {[%clk 0:02:50.1]} 8. Nf3 {[%clk 0:02:42]}
8... Qa5 {[%clk 0:02:45.1]} 9. Bd2 {[%clk 0:02:37.7]} 9... Qa4 {[%clk
0:02:43.9]} 10. Bd3 {[%clk 0:02:37.1]} 10... O-O {[%clk 0:02:43.9]} 11. Bxf5
{[%clk 0:02:34.6]} 11... exf5 {[%clk 0:02:42.1]} 12. Qh4 {[%clk 0:02:30.7]}
12... Qxc2 {[%clk 0:02:31.4]} 13. O-O {[%clk 0:02:28.3]} 13... Nc6 {[%clk
0:02:25.1]} 14. Rfe1 {[%clk 0:02:17.3]} 14... b6 {[%clk 0:02:01.2]} 15. dxc5
{[%clk 0:02:15.3]} 15... bxc5 {[%clk 0:02:00.7]} 16. Rac1 {[%clk 0:02:15.2]}
16... Qd3 {[%clk 0:01:50.8]} 17. c4 {[%clk 0:02:12.2]} 17... d4 {[%clk
0:01:38.6]} 18. Bg5 {[%clk 0:02:06]} 18... f4 {[%clk 0:01:26.3]} 19. Qxf4 {[%clk
0:01:59.2]} 19... Be6 {[%clk 0:01:20.5]} 20. Nd2 {[%clk 0:01:49.5]} 20... Bf5
{[%clk 0:01:05.5]} 21. Rcd1 {[%clk 0:01:30.1]} 21... Bg6 {[%clk 0:00:41.3]} 22.
Ne4 {[%clk 0:01:20.9]} 22... Qxc4 {[%clk 0:00:41.5]} 23. Rc1 {[%clk 0:01:18.5]}
23... Qd3 {[%clk 0:00:36.4]} 24. Nxc5 {[%clk 0:01:17.6]} 24... Qxa3 {[%clk
0:00:36]} 25. Nd7 {[%clk 0:01:04]} 25... Rfc8 {[%clk 0:00:32.9]} 26. Bf6 {[%clk
0:00:59.3]} 26... Nd8 {[%clk 0:00:17]} 27. Rxc8 {[%clk 0:00:45.5]} 27... Rxc8
{[%clk 0:00:17.9]} 28. Qxd4 {[%clk 0:00:34.5]} 28... Ne6 {[%clk 0:00:17.9]} 29.
Qg4 {[%clk 0:00:22.6]} 29... gxf6 {[%clk 0:00:16.1]} 30. Nxf6+ {[%clk
0:00:21.4]} 30... Kh8 {[%clk 0:00:13.6]} 31. h4 {[%clk 0:00:20.2]} 31... Rc1
{[%clk 0:00:06.9]} 32. Rxc1 {[%clk 0:00:18.3]} 32... Qxc1+ {[%clk 0:00:07.8]}
33. Kh2 {[%clk 0:00:18.7]} 33... Qf4+ {[%clk 0:00:07.3]} 34. Qxf4 {[%clk
0:00:19]} 34... Nxf4 {[%clk 0:00:08.2]} 35. g3 {[%clk 0:00:19.6]} 35... Nd3
{[%clk 0:00:08]} 36. h5 {[%clk 0:00:18.2]} 36... Bf5 {[%clk 0:00:07.5]} 37. g4
{[%clk 0:00:18.4]} 37... Be6 {[%clk 0:00:07.5]} 38. f4 {[%clk 0:00:18.3]} 38...
Nxf4 {[%clk 0:00:07.6]} 39. Kg3 {[%clk 0:00:18.7]} 39... Nd3 {[%clk 0:00:08]}
40. g5 {[%clk 0:00:17.8]} 40... Nxe5 {[%clk 0:00:08.3]} 0-1

[Event "Early-Titled-Tuesday-Blitz-March-19-2024"]
[Site "Chess.com"]
[Date "2024.03.19"]
[Round "7"]
[White "Tol_Tol"]
[Black "ZachHKL"]
[Result "0-1"]
[WhiteElo "2281"]
[BlackElo "2183"]
[TimeControl "180+1"]
[EndTime "9:18:58 PDT"]
[Termination "ZachHKL won by checkmate"]

1. d4 {[%clk 0:03:00.9]} 1... d5 {[%clk 0:02:59.7]} 2. c4 {[%clk 0:03:01.2]}
2... c6 {[%clk 0:02:59.3]} 3. Nf3 {[%clk 0:03:00.7]} 3... Nf6 {[%clk 0:02:59.2]}
4. Nc3 {[%clk 0:03:01.3]} 4... e6 {[%clk 0:02:59.3]} 5. Qd3 {[%clk 0:03:01]}
5... dxc4 {[%clk 0:02:57.2]} 6. Qxc4 {[%clk 0:03:01.1]} 6... b5 {[%clk
0:02:57.8]} 7. Qd3 {[%clk 0:03:01.5]} 7... a6 {[%clk 0:02:57.8]} 8. e4 {[%clk
0:03:01.4]} 8... c5 {[%clk 0:02:58.2]} 9. e5 {[%clk 0:03:01.1]} 9... Nfd7 {[%clk
0:02:56.2]} 10. d5 {[%clk 0:02:57.9]} 10... c4 {[%clk 0:02:51.5]} 11. Qd1 {[%clk
0:02:38.2]} 11... Nb6 {[%clk 0:02:49.2]} 12. d6 {[%clk 0:02:36.9]} 12... Bb7
{[%clk 0:02:47.5]} 13. Be2 {[%clk 0:02:32.6]} 13... Nc6 {[%clk 0:02:47.1]} 14.
O-O {[%clk 0:02:31.7]} 14... h6 {[%clk 0:02:42.9]} 15. Re1 {[%clk 0:02:28.2]}
15... g6 {[%clk 0:02:32.6]} 16. Ne4 {[%clk 0:02:20.7]} 16... Bg7 {[%clk
0:02:27.1]} 17. Nc5 {[%clk 0:02:20.8]} 17... Bc8 {[%clk 0:02:25.5]} 18. Bf1
{[%clk 0:02:10.4]} 18... Bd7 {[%clk 0:02:19.9]} 19. a4 {[%clk 0:01:57.7]} 19...
Qc8 {[%clk 0:02:11.5]} 20. axb5 {[%clk 0:01:55.5]} 20... axb5 {[%clk 0:02:09.1]}
21. Rxa8 {[%clk 0:01:55.1]} 21... Qxa8 {[%clk 0:02:06.7]} 22. b3 {[%clk
0:01:45.7]} 22... Qc8 {[%clk 0:02:05.5]} 23. bxc4 {[%clk 0:01:43.1]} 23... Nxc4
{[%clk 0:01:55.5]} 24. Nxd7 {[%clk 0:01:37.8]} 24... Qxd7 {[%clk 0:01:52.5]} 25.
Bxc4 {[%clk 0:01:37.4]} 25... bxc4 {[%clk 0:01:53.4]} 26. Qa4 {[%clk 0:01:29]}
26... c3 {[%clk 0:01:37.9]} 27. Qa8+ {[%clk 0:01:21.8]} 27... Nd8 {[%clk
0:01:35.8]} 28. Bf4 {[%clk 0:01:11.8]} 28... O-O {[%clk 0:01:34.8]} 29. h4
{[%clk 0:01:10.9]} 29... Qb5 {[%clk 0:01:17.2]} 30. Qa3 {[%clk 0:01:02.6]} 30...
Qc4 {[%clk 0:01:15]} 31. Qc1 {[%clk 0:00:54.8]} 31... Kh7 {[%clk 0:01:12.3]} 32.
Bd2 {[%clk 0:00:43.4]} 32... f6 {[%clk 0:01:04.1]} 33. Qxc3 {[%clk 0:00:35.7]}
33... Qd5 {[%clk 0:01:00.9]} 34. h5 {[%clk 0:00:32.2]} 34... fxe5 {[%clk
0:00:49.9]} 35. hxg6+ {[%clk 0:00:32.1]} 35... Kg8 {[%clk 0:00:47]} 36. Be3
{[%clk 0:00:17.9]} 36... Qxd6 {[%clk 0:00:35.1]} 37. Nd2 {[%clk 0:00:17.8]}
37... e4 {[%clk 0:00:32.6]} 38. Qb3 {[%clk 0:00:15.6]} 38... Qd5 {[%clk
0:00:30.7]} 39. Qc2 {[%clk 0:00:14.5]} 39... Rf6 {[%clk 0:00:26]} 40. Nxe4
{[%clk 0:00:14.7]} 40... Rxg6 {[%clk 0:00:25.5]} 41. Rd1 {[%clk 0:00:15.1]}
41... Qa8 {[%clk 0:00:22.2]} 42. Nc5 {[%clk 0:00:10.6]} 42... Qxg2# {[%clk
0:00:17.7]} 0-1

[Event "Early-Titled-Tuesday-Blitz-March-19-2024"]
[Site "Chess.com"]
[Date "2024.03.19"]
[Round "7"]
[White "esrosenberg"]
[Black "Crazy_girl99"]
[Result "1-0"]
[WhiteElo "2475"]
[BlackElo "2595"]
[TimeControl "180+1"]
[EndTime "9:19:00 PDT"]
[Termination "esrosenberg won by resignation"]

1. d4 {[%clk 0:02:56.3]} 1... Nf6 {[%clk 0:03:00]} 2. Nf3 {[%clk 0:02:56.3]}
2... e6 {[%clk 0:03:00.7]} 3. g3 {[%clk 0:02:56.4]} 3... d5 {[%clk 0:03:01.1]}
4. Bg2 {[%clk 0:02:56.9]} 4... c5 {[%clk 0:03:01.5]} 5. O-O {[%clk 0:02:57.1]}
5... Nc6 {[%clk 0:03:01.6]} 6. c4 {[%clk 0:02:57.1]} 6... dxc4 {[%clk
0:03:00.5]} 7. dxc5 {[%clk 0:02:56.7]} 7... Bxc5 {[%clk 0:02:58]} 8. Qxd8+
{[%clk 0:02:54.6]} 8... Kxd8 {[%clk 0:02:58.1]} 9. Nbd2 {[%clk 0:02:51.6]} 9...
c3 {[%clk 0:02:57.7]} 10. bxc3 {[%clk 0:02:51.6]} 10... Ke7 {[%clk 0:02:57.6]}
11. Nb3 {[%clk 0:02:50.4]} 11... Bb6 {[%clk 0:02:57.5]} 12. Ba3+ {[%clk
0:02:50.4]} 12... Ke8 {[%clk 0:02:54.2]} 13. Nfd4 {[%clk 0:02:34.4]} 13... Nd5
{[%clk 0:02:34.8]} 14. Nxc6 {[%clk 0:02:28.5]} 14... bxc6 {[%clk 0:02:34.6]} 15.
c4 {[%clk 0:02:28.1]} 15... Ne7 {[%clk 0:02:28.6]} 16. Bd6 {[%clk 0:02:21.3]}
16... Bd7 {[%clk 0:02:13.4]} 17. c5 {[%clk 0:02:20.7]} 17... Bd8 {[%clk
0:02:13.1]} 18. Rfd1 {[%clk 0:02:10.6]} 18... f6 {[%clk 0:02:05.5]} 19. Rab1
{[%clk 0:02:06.5]} 19... Nd5 {[%clk 0:02:05.5]} 20. Rdc1 {[%clk 0:01:57.2]}
20... a5 {[%clk 0:02:05]} 21. Nd4 {[%clk 0:01:50.9]} 21... e5 {[%clk 0:01:43.4]}
22. e4 {[%clk 0:01:31]} 22... Nb4 {[%clk 0:01:37.1]} 23. Nf5 {[%clk 0:01:31]}
23... g6 {[%clk 0:01:30.5]} 24. a3 {[%clk 0:01:26.7]} 24... Nd3 {[%clk
0:01:05.2]} 25. Rd1 {[%clk 0:01:26.8]} 25... Nxf2 {[%clk 0:01:05.3]} 26. Kxf2
{[%clk 0:01:25.5]} 26... gxf5 {[%clk 0:01:05.8]} 27. exf5 {[%clk 0:01:17.9]}
27... Rc8 {[%clk 0:00:58.6]} 28. g4 {[%clk 0:01:09.9]} 28... h5 {[%clk
0:00:58.6]} 29. h3 {[%clk 0:01:09.8]} 29... hxg4 {[%clk 0:00:58.1]} 30. hxg4
{[%clk 0:01:10.4]} 30... Rh7 {[%clk 0:00:49]} 31. Kg3 {[%clk 0:01:09.1]} 31...
Be7 {[%clk 0:00:47.6]} 32. Rh1 {[%clk 0:01:02.2]} 32... Rxh1 {[%clk 0:00:42.6]}
33. Rxh1 {[%clk 0:01:01.6]} 33... Bxd6 {[%clk 0:00:21.6]} 34. cxd6 {[%clk
0:01:01.7]} 34... Kd8 {[%clk 0:00:20.7]} 35. Rh8+ {[%clk 0:01:00.6]} 35... Be8
{[%clk 0:00:21]} 36. g5 {[%clk 0:00:56.1]} 36... Kd7 {[%clk 0:00:14.1]} 37. g6
{[%clk 0:00:36.9]} 37... Rd8 {[%clk 0:00:12.2]} 38. g7 {[%clk 0:00:23.4]} 38...
Bf7 {[%clk 0:00:12.4]} 39. Rf8 {[%clk 0:00:23.9]} 39... Bc4 {[%clk 0:00:07.6]}
40. Bxc6+ {[%clk 0:00:24.4]} 40... Kxc6 {[%clk 0:00:06]} 41. Rxd8 {[%clk
0:00:24.5]} 41... e4 {[%clk 0:00:05.4]} 42. g8=Q {[%clk 0:00:24.5]} 42... Bxg8
{[%clk 0:00:06]} 43. Rxg8 {[%clk 0:00:24.7]} 43... Kxd6 {[%clk 0:00:06.9]} 44.
Kf4 {[%clk 0:00:25]} 44... Kd5 {[%clk 0:00:07.4]} 45. Re8 {[%clk 0:00:25.5]}
45... Kc4 {[%clk 0:00:08]} 46. Rxe4+ {[%clk 0:00:25.9]} 46... Kb3 {[%clk
0:00:08.9]} 47. Re6 {[%clk 0:00:24.8]} 47... Kxa3 {[%clk 0:00:09.8]} 1-0

[Event "Early-Titled-Tuesday-Blitz-March-19-2024"]
[Site "Chess.com"]
[Date "2024.03.19"]
[Round "7"]
[White "tarno17"]
[Black "visa"]
[Result "0-1"]
[WhiteElo "2179"]
[BlackElo "2303"]
[TimeControl "180+1"]
[EndTime "9:19:00 PDT"]
[Termination "visa won on time"]

1. e4 {[%clk 0:03:00.9]} 1... d5 {[%clk 0:02:58.9]} 2. exd5 {[%clk 0:03:00.6]}
2... Qxd5 {[%clk 0:02:59.1]} 3. Nf3 {[%clk 0:03:00.9]} 3... Nc6 {[%clk
0:02:57.3]} 4. Nc3 {[%clk 0:02:58.6]} 4... Qh5 {[%clk 0:02:54.9]} 5. h3 {[%clk
0:02:55.2]} 5... Nf6 {[%clk 0:02:53.1]} 6. Be2 {[%clk 0:02:52]} 6... Bg4 {[%clk
0:02:32.2]} 7. d3 {[%clk 0:02:35.6]} 7... O-O-O {[%clk 0:02:20.2]} 8. Be3 {[%clk
0:02:24.3]} 8... Ne5 {[%clk 0:01:51.6]} 9. Nxe5 {[%clk 0:02:03.6]} 9... Bxe2
{[%clk 0:01:49.6]} 10. Qxe2 {[%clk 0:02:01]} 10... Qxe5 {[%clk 0:01:49.4]} 11.
O-O {[%clk 0:01:16.7]} 11... e6 {[%clk 0:01:44.9]} 12. f4 {[%clk 0:00:59.9]}
12... Qa5 {[%clk 0:01:32.1]} 13. a3 {[%clk 0:00:54.9]} 13... Bc5 {[%clk
0:01:29.7]} 14. b4 {[%clk 0:00:53.9]} 14... Bxe3+ {[%clk 0:01:29.1]} 15. Qxe3
{[%clk 0:00:54.8]} 15... Qb6 {[%clk 0:01:26.9]} 16. Qxb6 {[%clk 0:00:53]} 16...
axb6 {[%clk 0:01:25.9]} 17. g4 {[%clk 0:00:34.8]} 17... Nd5 {[%clk 0:01:25.8]}
18. Ne4 {[%clk 0:00:28.6]} 18... h6 {[%clk 0:01:18.6]} 19. Kg2 {[%clk
0:00:24.4]} 19... Ne3+ {[%clk 0:01:18.5]} 20. Kf3 {[%clk 0:00:22.5]} 20... Nxc2
{[%clk 0:01:10.1]} 21. Ke2 {[%clk 0:00:19.5]} 21... Nxa1 {[%clk 0:01:08.1]} 22.
Rxa1 {[%clk 0:00:19.6]} 22... Rd4 {[%clk 0:01:06.4]} 23. Nf2 {[%clk 0:00:15]}
23... Rxf4 {[%clk 0:01:02.9]} 24. Ke3 {[%clk 0:00:14]} 24... g5 {[%clk
0:00:58.3]} 25. Ne4 {[%clk 0:00:11.1]} 25... f5 {[%clk 0:00:55.4]} 26. gxf5
{[%clk 0:00:08.7]} 26... exf5 {[%clk 0:00:56.3]} 27. Nf6 {[%clk 0:00:05.8]}
27... Rf8 {[%clk 0:00:50.7]} 28. Nh5 {[%clk 0:00:05.4]} 28... Re8+ {[%clk
0:00:47.8]} 29. Kd2 {[%clk 0:00:05.2]} 29... Rh4 {[%clk 0:00:44.1]} 30. Nf6
{[%clk 0:00:04.5]} 30... Rf8 {[%clk 0:00:37.3]} 31. Nd5 {[%clk 0:00:04.4]} 31...
Rxh3 {[%clk 0:00:36]} 32. Rc1 {[%clk 0:00:03.8]} 32... c6 {[%clk 0:00:31.6]} 33.
Nxb6+ {[%clk 0:00:03.6]} 33... Kc7 {[%clk 0:00:30.2]} 34. Nc4 {[%clk 0:00:03.3]}
34... f4 {[%clk 0:00:28.6]} 35. Re1 {[%clk 0:00:03.1]} 35... Rf7 {[%clk
0:00:27]} 36. Re8 {[%clk 0:00:03.3]} 36... Rd7 {[%clk 0:00:26.5]} 37. Ne5 {[%clk
0:00:03]} 37... Rh2+ {[%clk 0:00:24.4]} 38. Kc3 {[%clk 0:00:02.9]} 38... Rg7
{[%clk 0:00:22.9]} 39. d4 {[%clk 0:00:02]} 39... g4 {[%clk 0:00:22.7]} 40. a4
{[%clk 0:00:01.2]} 40... f3 {[%clk 0:00:22.1]} 41. b5 {[%clk 0:00:01.1]} 41...
f2 {[%clk 0:00:20.8]} 0-1

[Event "Early-Titled-Tuesday-Blitz-March-19-2024"]
[Site "Chess.com"]
[Date "2024.03.19"]
[Round "7"]
[White "Rurep26"]
[Black "Casper"]
[Result "1-0"]
[WhiteElo "2729"]
[BlackElo "2500"]
[TimeControl "180+1"]
[EndTime "9:19:07 PDT"]
[Termination "Rurep26 won by resignation"]

1. d4 {[%clk 0:03:00.9]} 1... d5 {[%clk 0:02:59.5]} 2. Bf4 {[%clk 0:02:58.8]}
2... Bg4 {[%clk 0:02:59.2]} 3. c3 {[%clk 0:02:57.6]} 3... Nf6 {[%clk 0:02:59.5]}
4. Qb3 {[%clk 0:02:57.9]} 4... Qc8 {[%clk 0:02:58.8]} 5. Nd2 {[%clk 0:02:57.8]}
5... e6 {[%clk 0:02:58.7]} 6. Ngf3 {[%clk 0:02:58]} 6... c5 {[%clk 0:02:57.2]}
7. e3 {[%clk 0:02:50.9]} 7... Nc6 {[%clk 0:02:56.8]} 8. Ne5 {[%clk 0:02:50.1]}
8... Nxe5 {[%clk 0:02:53.2]} 9. dxe5 {[%clk 0:02:51]} 9... Nd7 {[%clk
0:02:52.1]} 10. c4 {[%clk 0:02:43.7]} 10... dxc4 {[%clk 0:02:38.3]} 11. Nxc4
{[%clk 0:02:41.9]} 11... Be7 {[%clk 0:02:37.7]} 12. f3 {[%clk 0:02:38.7]} 12...
Bh5 {[%clk 0:02:35.3]} 13. h4 {[%clk 0:02:38.2]} 13... Qc6 {[%clk 0:02:15.6]}
14. Na5 {[%clk 0:02:27.1]} 14... Qb6 {[%clk 0:02:15.2]} 15. Qxb6 {[%clk
0:02:08.9]} 15... axb6 {[%clk 0:02:16.1]} 16. Nc4 {[%clk 0:02:09.8]} 16... h6
{[%clk 0:01:43.9]} 17. Bd3 {[%clk 0:02:03.3]} 17... b5 {[%clk 0:01:42.5]} 18.
Nd2 {[%clk 0:02:00.6]} 18... c4 {[%clk 0:01:41.2]} 19. Be4 {[%clk 0:02:00.6]}
19... O-O-O {[%clk 0:01:31.9]} 20. g4 {[%clk 0:01:37.3]} 20... Bb4 {[%clk
0:01:31.1]} 21. gxh5 {[%clk 0:01:33.1]} 21... Nc5 {[%clk 0:01:29.2]} 22. Rd1
{[%clk 0:01:25.9]} 22... Na4 {[%clk 0:01:25]} 23. Ke2 {[%clk 0:00:50.4]} 23...
Nxb2 {[%clk 0:01:23]} 24. Nb1 {[%clk 0:00:47.2]} 24... Nxd1 {[%clk 0:01:21.4]}
25. Rxd1 {[%clk 0:00:48.1]} 25... Kc7 {[%clk 0:01:06.1]} 26. Rc1 {[%clk
0:00:38.8]} 26... Kb6 {[%clk 0:00:52.4]} 27. a3 {[%clk 0:00:30.7]} 27... Ba5
{[%clk 0:00:37.1]} 28. Rg1 {[%clk 0:00:29.8]} 28... Rhg8 {[%clk 0:00:27.7]} 29.
Bh7 {[%clk 0:00:29.1]} 29... Rge8 {[%clk 0:00:17]} 30. Rxg7 {[%clk 0:00:27.8]}
30... Re7 {[%clk 0:00:14.9]} 31. Bxh6 {[%clk 0:00:26.5]} 31... Rc7 {[%clk
0:00:15.5]} 32. Bg5 {[%clk 0:00:24]} 32... Rd5 {[%clk 0:00:14.9]} 33. Be4 {[%clk
0:00:22.7]} 33... c3 {[%clk 0:00:14.1]} 34. Nxc3 {[%clk 0:00:19.2]} 34... Rdc5
{[%clk 0:00:09.7]} 35. Nd1 {[%clk 0:00:17.3]} 35... Rc1 {[%clk 0:00:10]} 36. h6
{[%clk 0:00:16.5]} 36... Ra1 {[%clk 0:00:08.8]} 37. Bd8 {[%clk 0:00:14.2]} 37...
Ra2+ {[%clk 0:00:05.4]} 38. Kf1 {[%clk 0:00:13.5]} 38... Rd2 {[%clk 0:00:05.8]}
39. Bxc7+ {[%clk 0:00:13.4]} 39... Kxc7 {[%clk 0:00:06.7]} 40. Nf2 {[%clk
0:00:13.6]} 40... Rd1+ {[%clk 0:00:07.6]} 41. Nxd1 {[%clk 0:00:13]} 1-0

[Event "Early-Titled-Tuesday-Blitz-March-19-2024"]
[Site "Chess.com"]
[Date "2024.03.19"]
[Round "7"]
[White "suyu28"]
[Black "Anton_Demchenko"]
[Result "0-1"]
[WhiteElo "2846"]
[BlackElo "3021"]
[TimeControl "180+1"]
[EndTime "9:19:08 PDT"]
[Termination "Anton_Demchenko won on time"]

1. d4 {[%clk 0:03:00.9]} 1... Nf6 {[%clk 0:03:00]} 2. c4 {[%clk 0:03:01]} 2...
d6 {[%clk 0:03:00.6]} 3. Nf3 {[%clk 0:03:01.1]} 3... Nc6 {[%clk 0:03:00.2]} 4.
g3 {[%clk 0:03:01.4]} 4... e5 {[%clk 0:02:58.5]} 5. Bg2 {[%clk 0:03:00]} 5...
Be7 {[%clk 0:02:58.7]} 6. O-O {[%clk 0:02:59.8]} 6... O-O {[%clk 0:02:59.4]} 7.
Nc3 {[%clk 0:03:00.4]} 7... h6 {[%clk 0:02:59.9]} 8. h3 {[%clk 0:02:58.8]} 8...
Bf5 {[%clk 0:02:59.5]} 9. d5 {[%clk 0:02:50.5]} 9... Nb8 {[%clk 0:02:59]} 10.
Nd2 {[%clk 0:02:49.5]} 10... a5 {[%clk 0:02:58]} 11. e4 {[%clk 0:02:49.6]} 11...
Bh7 {[%clk 0:02:55.6]} 12. f4 {[%clk 0:02:46.6]} 12... exf4 {[%clk 0:02:49.5]}
13. gxf4 {[%clk 0:02:46]} 13... Nbd7 {[%clk 0:02:48.5]} 14. Re1 {[%clk
0:02:42.2]} 14... Nc5 {[%clk 0:02:41.4]} 15. Qc2 {[%clk 0:02:36.8]} 15... c6
{[%clk 0:02:39]} 16. Nf1 {[%clk 0:02:18.8]} 16... cxd5 {[%clk 0:02:38.5]} 17.
cxd5 {[%clk 0:02:18.6]} 17... b5 {[%clk 0:02:33.7]} 18. Be3 {[%clk 0:02:05.2]}
18... Rc8 {[%clk 0:02:24.7]} 19. Nxb5 {[%clk 0:01:12.5]} 19... Nfxe4 {[%clk
0:02:11.9]} 20. Nd4 {[%clk 0:01:05.9]} 20... Bh4 {[%clk 0:02:06.5]} 21. Nc6
{[%clk 0:01:02.8]} 21... Qf6 {[%clk 0:01:52.4]} 22. Red1 {[%clk 0:00:53]} 22...
Nf2 {[%clk 0:01:46.1]} 23. Qd2 {[%clk 0:00:47]} 23... Nxd1 {[%clk 0:01:46]} 24.
Rxd1 {[%clk 0:00:47.4]} 24... Ne4 {[%clk 0:01:42.3]} 25. Qc1 {[%clk 0:00:33]}
25... Rfe8 {[%clk 0:01:36.9]} 26. Nh2 {[%clk 0:00:32.5]} 26... Bf5 {[%clk
0:01:36.3]} 27. Nf3 {[%clk 0:00:32.2]} 27... Bg3 {[%clk 0:01:34.3]} 28. Nfd4
{[%clk 0:00:28.5]} 28... Bh7 {[%clk 0:01:22.4]} 29. Rf1 {[%clk 0:00:27.7]} 29...
Nc5 {[%clk 0:01:17.6]} 30. Qd2 {[%clk 0:00:22.6]} 30... a4 {[%clk 0:00:58.4]}
31. f5 {[%clk 0:00:22]} 31... Nd7 {[%clk 0:00:42.9]} 32. b4 {[%clk 0:00:20.7]}
32... axb3 {[%clk 0:00:42.7]} 33. axb3 {[%clk 0:00:21.6]} 33... Ne5 {[%clk
0:00:43.3]} 34. Kh1 {[%clk 0:00:19.3]} 34... Ra8 {[%clk 0:00:42.7]} 35. Rg1
{[%clk 0:00:19]} 35... Ng4 {[%clk 0:00:35.3]} 36. Bf3 {[%clk 0:00:04.9]} 36...
Nxe3 {[%clk 0:00:32.5]} 37. Rxg3 {[%clk 0:00:05.1]} 37... Ra1+ {[%clk
0:00:33.2]} 38. Rg1 {[%clk 0:00:03]} 38... Rxg1+ {[%clk 0:00:28.6]} 39. Kxg1
{[%clk 0:00:03.9]} 39... Qg5+ {[%clk 0:00:26.7]} 40. Kh1 {[%clk 0:00:04.2]}
40... Bxf5 {[%clk 0:00:25.6]} 41. Nxf5 {[%clk 0:00:02.4]} 41... Qxf5 {[%clk
0:00:26.2]} 42. Bg2 {[%clk 0:00:01.3]} 42... Qf4 {[%clk 0:00:23.2]} 43. Qe2
{[%clk 0:00:01.6]} 43... Ra8 {[%clk 0:00:22.3]} 0-1